fUSD/lending_fUSD_20241223
["ID","MTS","AMOUNT","RATE_DAILY","PERIOD"]
[346385009,1734931845164,-507.32,0.00019178,2]
[346385010,1734931845174,-500.0,0.00019178,2]
[346385011,1734931845183,-2090.29,0.00019178,2]
[346385012,1734931845193,-500.0,0.00019178,2]
[346385013,1734931845202,-913.32,0.00019178,2]
[346385014,1734931845212,-500.0,0.00019178,2]
[346385015,1734931845221,-502.95096967,0.00019178,2]
[346385016,1734931845230,-506.12570686,0.00019178,2]
[346385017,1734931845239,-500.0,0.00019178,2]
[346385018,1734931845248,-502.36996125,0.00019178,2]
[346385019,1734931845259,-500.0,0.00019178,2]
[346385020,1734931845268,-2331.66,0.00019178,2]
[346385021,1734931845277,-508.85565619,0.00019178,2]
[346385022,1734931845287,-500.0,0.00019178,2]
[346385023,1734931845297,-500.0,0.00019178,2]
[346385024,1734931845306,-1054.84,0.00019178,2]
[346385025,1734931845315,-500.0,0.00019178,2]
[346385026,1734931845325,-500.0,0.00019178,2]
[346385027,1734931845334,-503.43863896,0.00019178,2]
[346385028,1734931845343,-4701.04,0.00019178,2]
[346385029,1734931845352,-500.0,0.00019178,2]
[346385030,1734931845361,-500.0,0.00019178,2]
[346385031,1734931845370,-500.0,0.00019178,2]
[346385032,1734931845379,-947.18,0.00019178,2]
[346385033,1734931845388,-500.0,0.00019178,2]
[346385034,1734931845397,-908.05,0.00019178,2]
[346385035,1734931845406,-500.0,0.00019178,2]
[346385036,1734931845415,-500.0,0.00019178,2]
[346385037,1734931845424,-500.0,0.00019178,2]
[346385038,1734931845434,-1461.8,0.00019178,2]
[346385039,1734931845443,-500.0,0.00019178,2]
[346385040,1734931845452,-500.0,0.00019178,2]
[346385041,1734931845461,-500.0,0.00019178,2]
[346385042,1734931845470,-639.77,0.00019178,2]
[346385043,1734931845479,-4586.68,0.00019178,2]
[346385044,1734931845488,-500.0,0.00019178,2]
[346385045,1734931845497,-4068.61,0.00019178,2]
[346385046,1734931845507,-500.0,0.00019178,2]
[346385047,1734931845517,-500.0,0.00019178,2]
[346385048,1734931845526,-1818.33,0.00019178,2]
[346385049,1734931845536,-506.81398319,0.00019178,2]
[346385050,1734931845545,-500.0,0.00019178,2]
[346385051,1734931845554,-1267.64,0.00019178,2]
[346385052,1734931845563,-500.0,0.00019178,2]
[346385053,1734931845572,-508.27266278,0.00019178,2]
[346385054,1734931845581,-3791.58,0.00019178,2]
[346385055,1734931845590,-5139.77,0.00019178,2]
[346385056,1734931845599,-500.0,0.00019178,2]
[346385057,1734931845609,-500.0,0.00019178,2]
[346385058,1734931845618,-505.66520848,0.00019178,2]
[346385059,1734931845627,-944.63,0.00019178,2]
[346385060,1734931845637,-500.0,0.00019178,2]
[346385061,1734931845647,-10782.92,0.00019178,2]
[346385062,1734931845657,-515.46003701,0.00019178,2]
[346385063,1734931845667,-500.0,0.00019178,2]
[346385065,1734931845676,-500.0,0.00019178,2]
[346385067,1734931845685,-671.86,0.00019178,2]
[346385068,1734931845695,-500.0,0.00019178,2]
[346385069,1734931845704,-500.0,0.00019178,2]
[346385070,1734931845713,-223.68006247,0.00019178,2]
[346385071,1734931845726,-500.0,0.00019178,2]
[346385072,1734931845736,-500.0,0.00019178,2]
[346385073,1734931845745,-250.0,0.000192,2]
[346385074,1734931845757,-250.0,0.000192,2]
[346385075,1734931845766,-250.0,0.000192,2]
[346385076,1734931845776,-250.0,0.000192,2]
[346385077,1734931845785,-250.0,0.000192,2]
[346385079,1734931845794,-250.0,0.000192,2]
[346385080,1734931845803,-250.0,0.000192,2]
[346385082,1734931845813,-250.0,0.000192,2]
[346385083,1734931845822,-250.0,0.000192,2]
[346385084,1734931845831,-250.0,0.000192,2]
[346385085,1734931845840,-250.0,0.000192,2]
[346385086,1734931845850,-250.0,0.000192,2]
[346385087,1734931845859,-250.0,0.000192,2]
[346385088,1734931845868,-250.0,0.000192,2]
[346385089,1734931845877,-250.0,0.000192,2]
[346385090,1734931845887,-250.0,0.000192,2]
[346385091,1734931845896,-250.0,0.000192,2]
[346385092,1734931845905,-250.0,0.000192,2]
[346385093,1734931845914,-250.0,0.000192,2]
[346385094,1734931845923,-250.0,0.000192,2]
[346385095,1734931845933,-250.0,0.000192,2]
[346385096,1734931845943,-250.0,0.000192,2]
[346385097,1734931845952,-250.0,0.000192,2]
[346385098,1734931845962,-250.0,0.000192,2]
[346385099,1734931845971,-250.0,0.000192,2]
[346385100,1734931845980,-250.0,0.000192,2]
[346385101,1734931845989,-250.0,0.000192,2]
[346385102,1734931845999,-250.0,0.000192,2]
[346385103,1734931846008,-250.0,0.000192,2]
[346385104,1734931846018,-250.0,0.000192,2]
[346385105,1734931846027,-250.0,0.000192,2]
[346385106,1734931846036,-250.0,0.000192,2]
[346385107,1734931846046,-250.0,0.000192,2]
[346385108,1734931846056,-250.0,0.000192,2]
[346385109,1734931846066,-250.0,0.000192,2]
[346385110,1734931846075,-250.0,0.000192,2]
[346385111,1734931846085,-362.55960572,0.00019212,2]
[346385112,1734931846094,-273.16101921,0.00019288,2]
[346385113,1734931846103,-735.85,0.00019314,2]
[346385114,1734931846114,-50252.10725241,0.00019315,2]
[346385115,1734931846124,-362.55960572,0.00019345,2]
[346385116,1734931846134,-200.0,0.0001937,2]
[346385117,1734931846143,-500.0,0.00019373,2]
[346385118,1734931846153,-152.0,0.00019388,3]
[346385119,1734931846162,-63426.10166764,0.00019398,2]
[346385120,1734931846172,-231685.39089986,0.000194,2]
[346385121,1734931846182,-711129.89063969,0.000194,5]
[346385122,1734931846192,-150.0,0.00019429,4]
[346385123,1734931846201,-4685.88782363,0.00019442,2]
[346385124,1734931846211,-3525.7573943,0.00019442,2]
[346385125,1734931846220,-4669.40829449,0.00019443,2]
[346385126,1734931846230,-240.58549975,0.00019444,2]
[346385127,1734931846239,-2491.69159899,0.00019445,2]
[346385128,1734931846249,-22038.34626466,0.00019445,2]
[346385129,1734931846260,-392.73925532,0.00019446,2]
[346385130,1734931846269,-595.63587074,0.00019447,2]
[346385131,1734931846279,-13880.64625133,0.00019447,2]
[346385132,1734931846288,-595.63587074,0.00019448,2]
[346385133,1734931846297,-22038.34626466,0.00019449,2]
[346385134,1734931846307,-10487.07811421,0.00019449,2]
[346385135,1734931846316,-6120.29660436,0.0001945,2]
[346385136,1734931846325,-55939.05824548,0.0001945,2]
[346385137,1734931846334,-500.0,0.00019451,2]
[346385138,1734931846343,-735.85,0.00019451,2]
[346385139,1734931846353,-1666.424729,0.00019452,2]
[346385140,1734931846362,-1779.979594,0.00019452,2]
[346385141,1734931846371,-500.0,0.00019452,2]
[346385142,1734931846381,-500.0,0.00019452,2]
[346385143,1734931846390,-500.0,0.00019452,2]
[346385144,1734931846399,-500.0,0.00019452,2]
[346385145,1734931846408,-500.0,0.00019452,2]
[346385146,1734931846417,-500.0,0.00019452,2]
[346385147,1734931846571,-500.0,0.00019452,2]
[346385148,1734931846589,-500.0,0.00019452,2]
[346385149,1734931846599,-500.0,0.00019452,2]
[346385150,1734931846609,-500.0,0.00019452,2]
[346385151,1734931846618,-500.0,0.00019452,2]
[346385152,1734931846627,-500.0,0.00019452,2]
[346385153,1734931846637,-500.0,0.00019452,2]
[346385154,1734931846650,-500.0,0.00019452,2]
[346385155,1734931846659,-500.0,0.00019452,2]
[346385156,1734931846668,-500.0,0.00019452,2]
[346385157,1734931846677,-500.0,0.00019452,2]
[346385158,1734931846687,-500.0,0.00019452,2]
[346385159,1734931846696,-500.0,0.00019452,2]
[346385160,1734931846705,-500.0,0.00019452,2]
[346385161,1734931846715,-500.0,0.00019452,2]
[346385162,1734931846725,-500.0,0.00019452,2]
[346385163,1734931846734,-165.78866941,0.00019452,2]
[346385164,1734931846744,-163.578394,0.00019452,2]
[346385165,1734931846755,-178.435043,0.00019452,2]
[346385166,1734931846764,-500.0,0.00019452,2]
[346385167,1734931846773,-500.0,0.00019452,2]
[346385168,1734931846782,-500.0,0.00019452,2]
[346385169,1734931846792,-500.0,0.00019452,2]
[346385170,1734931846801,-507.5,0.00019452,2]
[346385171,1734931846811,-215.236961,0.00019452,2]
[346385172,1734931846820,-657.07,0.00019452,2]
[346385173,1734931846829,-500.0,0.00019452,2]
[346385174,1734931846838,-500.0,0.00019452,2]
[346385175,1734931846848,-299.62797059,0.00019452,2]
[346385176,1734931846858,-679.97,0.00019452,2]
[346385177,1734931846867,-500.0,0.00019452,2]
[346385178,1734931846876,-500.0,0.00019452,2]
[346385179,1734931846886,-500.0,0.00019452,2]
[346385180,1734931846895,-261.53320929,0.00019452,2]
[346385181,1734931846904,-500.0,0.00019452,2]
[346385182,1734931846913,-1505.59,0.00019452,2]
[346385183,1734931846922,-500.0,0.00019452,2]
[346385184,1734931846932,-500.0,0.00019452,2]
[346385185,1734931846941,-900.25,0.00019452,2]
[346385186,1734931846951,-944.35,0.00019452,2]
[346385187,1734931846960,-500.0,0.00019452,2]
[346385188,1734931846969,-380.67641698,0.00019452,2]
[346385189,1734931846978,-1042.44,0.00019452,2]
[346385190,1734931846988,-1424.15,0.00019452,2]
[346385191,1734931846997,-517.17,0.00019452,2]
[346385192,1734931847009,-500.0,0.00019452,2]
[346385193,1734931847019,-857.38,0.00019452,2]
[346385194,1734931847029,-500.0,0.00019452,2]
[346385195,1734931847038,-500.0,0.00019452,2]
[346385196,1734931847048,-500.0,0.00019452,2]
[346385197,1734931847057,-500.0,0.00019452,2]
[346385198,1734931847067,-500.0,0.00019452,2]
[346385199,1734931847076,-500.0,0.00019452,2]
[346385200,1734931847086,-266.80397,0.00019452,2]
[346385201,1734931847095,-554.75,0.00019452,2]
[346385202,1734931847105,-576.08,0.00019452,2]
[346385203,1734931847115,-500.0,0.00019452,2]
[346385204,1734931847125,-500.0,0.00019452,2]
[346385205,1734931847134,-500.0,0.00019452,2]
[346385206,1734931847144,-500.0,0.00019452,2]
[346385207,1734931847153,-500.0,0.00019452,2]
[346385208,1734931847163,-500.0,0.00019452,2]
[346385209,1734931847172,-471.006464,0.00019452,2]
[346385210,1734931847181,-500.0,0.00019452,2]
[346385211,1734931847191,-500.0,0.00019452,2]
[346385212,1734931847200,-718.91,0.00019452,2]
[346385213,1734931847209,-884.86,0.00019452,2]
[346385214,1734931847219,-500.0,0.00019452,2]
[346385215,1734931847228,-500.0,0.00019452,2]
[346385216,1734931847237,-500.0,0.00019452,2]
[346385217,1734931847246,-500.0,0.00019452,2]
[346385218,1734931847256,-500.0,0.00019452,2]
[346385219,1734931847265,-500.0,0.00019452,2]
[346385220,1734931847274,-500.0,0.00019452,2]
[346385221,1734931847284,-500.0,0.00019452,2]
[346385222,1734931847293,-639.82,0.00019452,2]
[346385223,1734931847302,-846.36,0.00019452,2]
[346385224,1734931847311,-500.0,0.00019452,2]
[346385225,1734931847320,-500.0,0.00019452,2]
[346385226,1734931847329,-500.0,0.00019452,2]
[346385227,1734931847338,-500.0,0.00019452,2]
[346385228,1734931847348,-500.0,0.00019452,2]
[346385229,1734931847357,-948.71,0.00019452,2]
[346385230,1734931847366,-500.0,0.00019452,2]
[346385231,1734931847375,-500.0,0.00019452,2]
[346385232,1734931847385,-718.2,0.00019452,2]
[346385233,1734931847394,-509.4208727,0.00019452,2]
[346385234,1734931847404,-500.0,0.00019452,2]
[346385235,1734931847413,-563.08554087,0.00019452,2]
[346385236,1734931847422,-500.0,0.00019452,2]
[346385237,1734931847432,-500.0,0.00019452,2]
[346385238,1734931847441,-507.71493186,0.00019452,2]
[346385239,1734931847451,-511.13793994,0.00019452,2]
[346385240,1734931847460,-500.0,0.00019452,2]
[346385241,1734931847469,-500.0,0.00019452,2]
[346385242,1734931847478,-508.60397802,0.00019452,2]
[346385243,1734931847487,-500.0,0.00019452,2]
[346385244,1734931847496,-513.22888101,0.00019452,2]
[346385245,1734931847505,-500.0,0.00019452,2]
[346385246,1734931847514,-507.16,0.00019452,2]
[346385247,1734931847524,-1017.04,0.00019452,2]
[346385248,1734931847533,-867.51,0.00019452,2]
[346385249,1734931847542,-500.0,0.00019452,2]
[346385250,1734931847551,-528.62,0.00019452,2]
[346385251,1734931847560,-500.0,0.00019452,2]
[346385252,1734931847569,-500.0,0.00019452,2]
[346385253,1734931847579,-500.0,0.00019452,2]
[346385254,1734931847588,-500.0,0.00019452,2]
[346385255,1734931847597,-500.0,0.00019452,2]
[346385256,1734931847607,-500.0,0.00019452,2]
[346385257,1734931847617,-500.0,0.00019452,2]
[346385258,1734931847626,-500.0,0.00019452,2]
[346385259,1734931847636,-630.59,0.00019452,2]
[346385260,1734931847646,-549.74,0.00019452,2]
[346385261,1734931847656,-500.0,0.00019452,2]
[346385262,1734931847666,-780.48,0.00019452,2]
[346385263,1734931847675,-506.99451423,0.00019452,2]
[346385264,1734931847684,-826.95,0.00019452,2]
[346385265,1734931847694,-500.0,0.00019452,2]
[346385266,1734931847703,-500.0,0.00019452,2]
[346385267,1734931847712,-500.0,0.00019452,2]
[346385268,1734931847721,-500.0,0.00019452,2]
[346385269,1734931847733,-500.0,0.00019452,2]
[346385270,1734931847743,-500.0,0.00019452,2]
[346385271,1734931847752,-500.0,0.00019452,2]
[346385272,1734931847763,-500.0,0.00019452,2]
[346385273,1734931847772,-500.0,0.00019452,2]
[346385274,1734931847781,-509.6439738,0.00019452,2]
[346385275,1734931847791,-500.0,0.00019452,2]
[346385276,1734931847800,-500.0,0.00019452,2]
[346385277,1734931847809,-500.0,0.00019452,2]
[346385278,1734931847819,-500.0,0.00019452,2]
[346385279,1734931847828,-500.0,0.00019452,2]
[346385280,1734931847837,-500.0,0.00019452,2]
[346385281,1734931847846,-232.66561568,0.00019452,2]
[346385282,1734931847855,-500.0,0.00019452,2]
[346385283,1734931847864,-500.0,0.00019452,2]
[346385284,1734931847873,-500.0,0.00019452,2]
[346385285,1734931847882,-500.0,0.00019452,2]
[346385286,1734931847891,-500.0,0.00019452,2]
[346385287,1734931847900,-1687.56,0.00019452,2]
[346385288,1734931847909,-500.0,0.00019452,2]
[346385289,1734931847918,-500.0,0.00019452,2]
[346385290,1734931847928,-500.0,0.00019452,2]
[346385291,1734931847937,-500.0,0.00019452,2]
[346385292,1734931847946,-500.0,0.00019452,2]
[346385293,1734931847955,-500.0,0.00019452,2]
[346385294,1734931847965,-500.0,0.00019452,2]
[346385295,1734931847975,-500.0,0.00019452,2]
[346385296,1734931847984,-684.58,0.00019452,2]
[346385297,1734931847993,-500.0,0.00019452,2]
[346385298,1734931848003,-500.0,0.00019452,2]
[346385299,1734931848013,-328.09051946,0.00019452,2]
[346385300,1734931848022,-500.0,0.00019452,2]
[346385301,1734931848032,-500.0,0.00019452,2]
[346385302,1734931848042,-500.0,0.00019452,2]
[346385303,1734931848051,-500.0,0.00019452,2]
[346385304,1734931848061,-753.57,0.00019452,2]
[346385305,1734931848070,-1091.4,0.00019452,2]
[346385306,1734931848080,-500.0,0.00019452,2]
[346385307,1734931848089,-500.0,0.00019452,2]
[346385308,1734931848099,-500.0,0.00019452,2]
[346385309,1734931848109,-500.0,0.00019452,2]
[346385310,1734931848119,-1152.55,0.00019452,2]
[346385311,1734931848128,-500.0,0.00019452,2]
[346385312,1734931848138,-500.0,0.00019452,2]
[346385313,1734931848147,-500.0,0.00019452,2]
[346385314,1734931848156,-500.0,0.00019452,2]
[346385315,1734931848167,-500.0,0.00019452,2]
[346385316,1734931848176,-500.0,0.00019452,2]
[346385317,1734931848186,-500.0,0.00019452,2]
[346385318,1734931848195,-2000.0,0.00019452,15]
[346385319,1734931848204,-500.0,0.00019452,2]
[346385320,1734931848213,-511.60526384,0.00019452,2]
[346385321,1734931848223,-1151.76,0.00019452,2]
[346385322,1734931848232,-802.36,0.00019452,2]
[346385323,1734931848241,-963.0,0.00019452,2]
[346385324,1734931848251,-1039.93,0.00019452,2]
[346385325,1734931848260,-500.0,0.00019452,2]
[346385326,1734931848269,-500.0,0.00019452,2]
[346385327,1734931848279,-500.0,0.00019452,2]
[346385328,1734931848289,-500.0,0.00019452,2]
[346385329,1734931848298,-773.86,0.00019452,2]
[346385330,1734931848308,-500.0,0.00019452,2]
[346385331,1734931848317,-500.0,0.00019452,2]
[346385332,1734931848326,-981.87,0.00019452,2]
[346385333,1734931848335,-500.0,0.00019452,2]
[346385334,1734931848344,-639.35,0.00019452,2]
[346385335,1734931848354,-500.0,0.00019452,2]
[346385336,1734931848363,-500.0,0.00019452,2]
[346385337,1734931848372,-500.0,0.00019452,2]
[346385338,1734931848381,-500.0,0.00019452,2]
[346385339,1734931848391,-500.0,0.00019452,2]
[346385340,1734931848400,-500.0,0.00019452,2]
[346385341,1734931848409,-1110.45,0.00019452,2]
[346385342,1734931848418,-500.0,0.00019452,2]
[346385343,1734931848427,-500.0,0.00019452,2]
[346385344,1734931848436,-500.0,0.00019452,2]
[346385345,1734931848445,-500.0,0.00019452,2]
[346385346,1734931848454,-506.28760414,0.00019452,2]
[346385347,1734931848463,-500.0,0.00019452,2]
[346385348,1734931848472,-500.0,0.00019452,2]
[346385349,1734931848481,-500.0,0.00019452,2]
[346385350,1734931848490,-561.56,0.00019452,2]
[346385351,1734931848499,-500.0,0.00019452,2]
[346385352,1734931848510,-500.0,0.00019452,2]
[346385353,1734931848519,-500.0,0.00019452,2]
[346385354,1734931848530,-500.0,0.00019452,2]
[346385355,1734931848539,-500.0,0.00019452,2]
[346385356,1734931848548,-500.0,0.00019452,2]
[346385357,1734931848557,-500.0,0.00019452,2]
[346385358,1734931848566,-500.0,0.00019452,2]
[346385359,1734931848575,-1191.17,0.00019452,2]
[346385360,1734931848585,-500.0,0.00019452,2]
[346385361,1734931848594,-500.0,0.00019452,2]
[346385362,1734931848603,-500.0,0.00019452,2]
[346385363,1734931848612,-500.0,0.00019452,2]
[346385364,1734931848621,-500.0,0.00019452,2]
[346385365,1734931848630,-500.0,0.00019452,2]
[346385366,1734931848639,-835.79,0.00019452,2]
[346385367,1734931848652,-500.0,0.00019452,2]
[346385368,1734931848662,-500.0,0.00019452,2]
[346385369,1734931848671,-517.17,0.00019452,2]
[346385370,1734931848680,-500.0,0.00019452,2]
[346385371,1734931848690,-500.0,0.00019452,2]
[346385372,1734931848699,-1080.73,0.00019452,2]
[346385373,1734931848709,-506.17342337,0.00019452,2]
[346385374,1734931848718,-631.87,0.00019452,2]
[346385375,1734931848728,-511.16122439,0.00019452,2]
[346385376,1734931848737,-500.0,0.00019452,2]
[346385377,1734931848746,-500.0,0.00019452,2]
[346385378,1734931848756,-858.93,0.00019452,2]
[346385379,1734931848767,-500.0,0.00019452,2]
[346385380,1734931848777,-504.58573887,0.00019452,2]
[346385381,1734931848791,-500.0,0.00019452,2]
[346385382,1734931848800,-1219.06,0.00019452,2]
[346385383,1734931848810,-982.96,0.00019452,2]
[346385384,1734931848819,-500.0,0.00019452,2]
[346385385,1734931848828,-663.64,0.00019452,2]
[346385386,1734931848837,-964.4,0.00019452,2]
[346385387,1734931848847,-500.0,0.00019452,2]
[346385388,1734931848856,-500.0,0.00019452,2]
[346385389,1734931848866,-506.26242074,0.00019452,2]
[346385390,1734931848875,-1549.06,0.00019452,2]
[346385391,1734931848884,-500.0,0.00019452,2]
[346385392,1734931848894,-1362.82,0.00019452,2]
[346385393,1734931848904,-793.53,0.00019452,2]
[346385394,1734931848913,-500.0,0.00019452,2]
[346385395,1734931848923,-500.0,0.00019452,2]
[346385396,1734931848932,-873.95,0.00019452,2]
[346385397,1734931848942,-1233.1,0.00019452,2]
[346385398,1734931848952,-500.0,0.00019452,2]
[346385399,1734931848961,-500.0,0.00019452,2]
[346385400,1734931848971,-500.0,0.00019452,2]
[346385401,1734931848981,-500.0,0.00019452,2]
[346385402,1734931848992,-1438.0,0.00019452,2]
[346385403,1734931849001,-1148.23,0.00019452,2]
[346385404,1734931849161,-500.0,0.00019452,2]
[346385405,1734931849171,-500.0,0.00019452,2]
[346385406,1734931849182,-1241.74,0.00019452,2]
[346385407,1734931849191,-500.0,0.00019452,2]
[346385408,1734931849201,-1762.53,0.00019452,2]
[346385409,1734931849210,-1475.63,0.00019452,2]
[346385410,1734931849220,-814.81,0.00019452,2]
[346385411,1734931849229,-748.52,0.00019452,2]
[346385412,1734931849239,-1059.68,0.00019452,2]
[346385413,1734931849248,-4070.61,0.00019452,2]
[346385414,1734931849259,-500.0,0.00019452,2]
[346385415,1734931849269,-1639.91,0.00019452,2]
[346385416,1734931849279,-500.0,0.00019452,2]
[346385417,1734931849289,-500.0,0.00019452,2]
[346385418,1734931849299,-500.0,0.00019452,2]
[346385419,1734931849308,-1461.71,0.00019452,2]
[346385420,1734931849318,-871.56,0.00019452,2]
[346385421,1734931849328,-500.0,0.00019452,2]
[346385422,1734931849337,-500.0,0.00019452,2]
[346385423,1734931849347,-2540.93,0.00019452,2]
[346385424,1734931849356,-921.96,0.00019452,2]
[346385425,1734931849366,-500.0,0.00019452,2]
[346385426,1734931849375,-1034.57,0.00019452,2]
[346385427,1734931849385,-500.0,0.00019452,2]
[346385428,1734931849394,-877.08,0.00019452,2]
[346385429,1734931849404,-394.22162209,0.00019452,2]
[346385430,1734931849413,-2898.89,0.00019452,2]
[346385431,1734931849422,-1856.0,0.00019452,2]
[346385432,1734931849432,-500.0,0.00019452,2]
[346385433,1734931849441,-2011.66,0.00019452,2]
[346385434,1734931849450,-500.0,0.00019452,2]
[346385435,1734931849460,-500.0,0.00019452,2]
[346385436,1734931849469,-500.0,0.00019452,2]
[346385437,1734931849478,-1772.94,0.00019452,2]
[346385438,1734931849488,-1442.63,0.00019452,2]
[346385439,1734931849497,-683.32,0.00019452,2]
[346385440,1734931849506,-2520.6,0.00019452,2]
[346385441,1734931849516,-1497.92,0.00019452,2]
[346385442,1734931849525,-982.46,0.00019452,2]
[346385443,1734931849535,-999.97,0.00019452,2]
[346385444,1734931849544,-1908.85,0.00019452,2]
[346385445,1734931849553,-500.0,0.00019452,2]
[346385446,1734931849562,-500.0,0.00019452,2]
[346385447,1734931849572,-2943.86,0.00019452,2]
[346385448,1734931849581,-500.0,0.00019452,2]
[346385449,1734931849590,-500.0,0.00019452,2]
[346385450,1734931849599,-500.0,0.00019452,2]
[346385451,1734931849608,-500.0,0.00019452,2]
[346385452,1734931849617,-500.0,0.00019452,2]
[346385453,1734931849627,-1979.77,0.00019452,2]
[346385454,1734931849636,-500.0,0.00019452,2]
[346385455,1734931849646,-12786.51,0.00019452,2]
[346385456,1734931849657,-1190.83,0.00019452,2]
[346385457,1734931849667,-2755.35,0.00019452,2]
[346385458,1734931849676,-500.0,0.00019452,2]
[346385459,1734931849685,-2155.86,0.00019452,2]
[346385460,1734931849694,-500.0,0.00019452,2]
[346385461,1734931849704,-500.0,0.00019452,2]
[346385462,1734931849713,-500.0,0.00019452,2]
[346385463,1734931849723,-1171.17,0.00019452,2]
[346385464,1734931849732,-1248.58,0.00019452,2]
[346385465,1734931849742,-1119.96,0.00019452,2]
[346385466,1734931849751,-5172.01,0.00019452,2]
[346385467,1734931849761,-500.0,0.00019452,2]
[346385468,1734931849771,-17011.16,0.00019452,2]
[346385469,1734931849780,-1096.06,0.00019452,2]
[346385470,1734931849789,-1877.8,0.00019452,2]
[346385471,1734931849798,-38342.95,0.00019452,2]
[346385472,1734931849807,-2012.46,0.00019452,2]
[346385473,1734931849817,-500.0,0.00019452,2]
[346385474,1734931849826,-1766.94,0.00019452,2]
[346385475,1734931849836,-500.0,0.00019452,2]
[346385476,1734931849845,-3051.76,0.00019452,2]
[346385477,1734931849854,-1221.94,0.00019452,2]
[346385478,1734931849863,-508.80129322,0.00019452,2]
[346385479,1734931849872,-500.0,0.00019452,2]
[346385480,1734931849881,-686.62,0.00019452,2]
[346385481,1734931849891,-504.07609417,0.00019452,2]
[346385482,1734931849900,-798.65,0.00019452,2]
[346385483,1734931849909,-3464.09,0.00019452,2]
[346385484,1734931849918,-500.0,0.00019452,2]
[346385485,1734931849928,-500.0,0.00019452,2]
[346385486,1734931849937,-1534.55,0.00019452,2]
[346385487,1734931849947,-500.0,0.00019452,2]
[346385488,1734931849956,-3099.81,0.00019452,2]
[346385489,1734931849966,-500.0,0.00019452,2]
[346385490,1734931849975,-500.0,0.00019452,2]
[346385491,1734931849984,-969.15,0.00019452,2]
[346385492,1734931849993,-531.76,0.00019452,2]
[346385493,1734931850003,-500.0,0.00019452,2]
[346385494,1734931850013,-1332.97,0.00019452,2]
[346385495,1734931850022,-500.0,0.00019452,2]
[346385496,1734931850031,-1657.62,0.00019452,2]
[346385497,1734931850041,-2171.88,0.00019452,2]
[346385498,1734931850050,-3536.71,0.00019452,2]
[346385499,1734931850059,-2241.66,0.00019452,2]
[346385500,1734931850068,-3557.06,0.00019452,2]
[346385501,1734931850078,-780.7,0.00019452,2]
[346385502,1734931850087,-1978.94,0.00019452,2]
[346385503,1734931850096,-1952.38,0.00019452,2]
[346385504,1734931850105,-500.0,0.00019452,2]
[346385505,1734931850114,-500.0,0.00019452,2]
[346385506,1734931850124,-721.01,0.00019452,2]
[346385507,1734931850134,-6166.88,0.00019452,2]
[346385508,1734931850143,-500.0,0.00019452,2]
[346385509,1734931850153,-767.61,0.00019452,2]
[346385510,1734931850163,-1060.92,0.00019452,2]
[346385511,1734931850172,-9256.22,0.00019452,2]
[346385512,1734931850182,-6408.71,0.00019452,2]